fUSD/lending_fUSD_20250219
["ID","MTS","AMOUNT","RATE_DAILY","PERIOD"]
[353647557,1739981444517,-651.71,0.00013251,2]
[353647559,1739981444526,-500.0,0.00013251,2]
[353647561,1739981444535,-651.58,0.00013251,2]
[353647563,1739981444544,-500.0,0.00013251,2]
[353647565,1739981444555,-500.0,0.00013251,2]
[353647567,1739981444564,-500.0,0.00013251,2]
[353647569,1739981444573,-218.63100634,0.00013251,2]
[353647571,1739981444582,-500.0,0.00013251,2]
[353647573,1739981444592,-1016.2,0.00013251,2]
[353647575,1739981444601,-500.0,0.00013251,2]
[353647577,1739981444611,-1118.0,0.00013251,2]
[353647579,1739981444620,-500.0,0.00013251,2]
[353647581,1739981444629,-1202.47,0.00013251,2]
[353647583,1739981444638,-1207.34,0.00013252,2]
[353647585,1739981444647,-1505.77,0.00013252,2]
[353647587,1739981444657,-1067.17,0.00013252,2]
[353647589,1739981444666,-500.0,0.00013252,2]
[353647590,1739981444676,-500.0,0.00013252,2]
[353647591,1739981444686,-1113.19,0.00013252,2]
[353647592,1739981444696,-500.0,0.00013252,2]
[353647593,1739981444706,-500.0,0.00013252,2]
[353647594,1739981444716,-911.21,0.00013252,2]
[353647595,1739981444726,-651.34,0.00013252,2]
[353647596,1739981444736,-1031.71,0.00013252,2]
[353647597,1739981444746,-759.85,0.00013252,2]
[353647598,1739981444755,-1162.39,0.00013252,2]
[353647600,1739981444766,-1299.76,0.00013252,2]
[353647602,1739981444775,-500.0,0.00013252,2]
[353647604,1739981444785,-500.0,0.00013252,2]
[353647606,1739981444795,-500.0,0.00013252,2]
[353647608,1739981444804,-849.12,0.00013252,2]
[353647617,1739981445043,-615.67,0.00013252,2]
[353647618,1739981445053,-1109.7,0.00013252,2]
[353647619,1739981445063,-665.19,0.00013252,2]
[353647620,1739981445073,-500.0,0.00013252,2]
[353647621,1739981445083,-860.99,0.00013252,2]
[353647622,1739981445092,-1270.22,0.00013252,2]
[353647623,1739981445102,-1751.06,0.00013252,2]
[353647624,1739981445112,-797.36,0.00013252,2]
[353647625,1739981445121,-758.76,0.00013252,2]
[353647627,1739981445131,-500.0,0.00013252,2]
[353647628,1739981445140,-813.75,0.00013252,2]
[353647631,1739981445149,-1833.76,0.00013252,2]
[353647632,1739981445158,-1190.62,0.00013252,2]
[353647634,1739981445169,-1309.09,0.00013252,2]
[353647636,1739981445178,-674.84,0.00013252,2]
[353647638,1739981445188,-671.96,0.00013252,2]
[353647640,1739981445197,-1059.62,0.00013252,2]
[353647642,1739981445207,-804.42,0.00013252,2]
[353647644,1739981445221,-771.67,0.00013252,2]
[353647646,1739981445230,-500.0,0.00013252,2]
[353647648,1739981445239,-512.14,0.00013252,2]
[353647650,1739981445249,-1003.49,0.00013252,2]
[353647652,1739981445259,-1162.25,0.00013252,2]
[353647654,1739981445268,-960.4,0.00013252,2]
[353647656,1739981445277,-500.0,0.00013252,2]
[353647658,1739981445286,-500.0,0.00013252,2]
[353647660,1739981445296,-1713.19,0.00013252,2]
[353647662,1739981445307,-787.35,0.00013252,2]
[353647664,1739981445317,-1673.22,0.00013252,2]
[353647666,1739981445328,-500.0,0.00013252,2]
[353647668,1739981445338,-500.0,0.00013252,2]
[353647670,1739981445348,-1201.88,0.00013252,2]
[353647672,1739981445358,-1529.79,0.00013252,2]
[353647674,1739981445367,-1923.19,0.00013252,2]
[353647676,1739981445377,-1454.02,0.00013252,2]
[353647678,1739981445387,-1769.83,0.00013252,2]
[353647680,1739981445396,-846.13,0.00013252,2]
[353647682,1739981445407,-527.23,0.00013252,2]
[353647684,1739981445417,-1387.3,0.00013252,2]
[353647686,1739981445428,-500.0,0.00013252,2]
[353647688,1739981445439,-1073.32,0.00013252,2]
[353647690,1739981445449,-500.0,0.00013252,2]
[353647692,1739981445463,-1370.88,0.00013252,2]
[353647694,1739981445475,-500.0,0.00013252,2]
[353647696,1739981445484,-1721.94,0.00013252,2]
[353647698,1739981445494,-1188.82,0.00013252,2]
[353647700,1739981445504,-954.65,0.00013252,2]
[353647702,1739981445513,-1165.0,0.00013252,2]
[353647704,1739981445523,-1053.26,0.00013252,2]
[353647706,1739981445532,-1402.42,0.00013252,2]
[353647708,1739981445541,-1502.66,0.00013252,2]
[353647710,1739981445551,-500.0,0.00013252,2]
[353647712,1739981445560,-181.97737782,0.00013252,2]
[353647714,1739981445570,-180.04141742,0.00013252,2]
[353647716,1739981445579,-500.0,0.00013252,2]
[353647719,1739981445589,-500.0,0.00013252,2]
[353647720,1739981445599,-225.24429181,0.00013252,2]
[353647723,1739981445608,-1458.59,0.00013252,2]
[353647724,1739981445618,-1883.09,0.00013252,2]
[353647726,1739981445627,-500.0,0.00013252,2]
[353647728,1739981445637,-151.0,0.00013252,2]
[353647730,1739981445647,-500.0,0.00013252,2]
[353647732,1739981445656,-151.0,0.00013252,2]
[353647734,1739981445665,-540.26,0.00013252,2]
[353647737,1739981445675,-151.0,0.00013252,2]
[353647738,1739981445685,-151.0,0.00013252,2]
[353647740,1739981445695,-1090.36,0.00013252,2]
[353647743,1739981445704,-651.0,0.00013252,2]
[353647745,1739981445713,-590.33,0.00013252,2]
[353647747,1739981445723,-198.208733,0.00013252,2]
[353647749,1739981445732,-1041.61,0.00013252,2]
[353647751,1739981445742,-198.208733,0.00013252,2]
[353647753,1739981445752,-803.85,0.00013252,2]
[353647755,1739981445761,-1628.61,0.00013252,2]
[353647756,1739981445770,-500.0,0.00013252,2]
[353647758,1739981445779,-503.71,0.00013252,2]
[353647761,1739981445790,-493.48,0.00013252,2]
[353647763,1739981445799,-867.43,0.00013253,2]
[353647764,1739981445813,-500.0,0.00013253,2]
[353647766,1739981445826,-500.0,0.00013253,2]
[353647769,1739981445836,-497.71614204,0.00013253,2]
[353647771,1739981445845,-1084.29,0.00013253,2]
[353647772,1739981445857,-500.0,0.00013253,2]
[353647774,1739981445868,-500.0,0.00013253,2]
[353647777,1739981445878,-500.0,0.00013253,2]
[353647778,1739981445888,-500.0,0.00013253,2]
[353647780,1739981445897,-819.96,0.00013253,2]
[353647782,1739981445907,-546.22,0.00013253,2]
[353647785,1739981445917,-500.0,0.00013253,2]
[353647786,1739981445926,-500.0,0.00013253,2]
[353647789,1739981445935,-500.0,0.00013253,2]
[353647791,1739981445945,-1086.38,0.00013253,2]
[353647793,1739981445954,-500.0,0.00013253,2]
[353647795,1739981445964,-500.0,0.00013253,2]
[353647797,1739981445974,-978.47,0.00013253,2]
[353647799,1739981445983,-500.0,0.00013253,2]
[353647800,1739981445992,-500.0,0.00013253,2]
[353647803,1739981446002,-737.96,0.00013253,2]
[353647805,1739981446011,-500.0,0.00013253,2]
[353647807,1739981446020,-500.0,0.00013253,2]
[353647810,1739981446029,-500.0,0.00013253,2]
[353647812,1739981446039,-500.0,0.00013253,2]
[353647814,1739981446048,-562.17,0.00013253,2]
[353647816,1739981446057,-500.0,0.00013253,2]
[353647818,1739981446066,-821.61,0.00013253,2]
[353647820,1739981446075,-929.95,0.00013253,2]
[353647822,1739981446084,-500.0,0.00013253,2]
[353647824,1739981446094,-500.0,0.00013253,2]
[353647826,1739981446103,-500.0,0.00013253,2]
[353647828,1739981446112,-500.0,0.00013253,2]
[353647830,1739981446121,-500.0,0.00013253,2]
[353647831,1739981446130,-500.0,0.00013253,2]
[353647833,1739981446140,-517.42,0.00013253,2]
[353647835,1739981446149,-500.0,0.00013253,2]
[353647837,1739981446159,-500.0,0.00013253,2]
[353647839,1739981446169,-500.0,0.00013253,2]
[353647841,1739981446179,-500.0,0.00013253,2]
[353647843,1739981446188,-500.0,0.00013253,2]
[353647845,1739981446197,-500.0,0.00013253,2]
[353647847,1739981446207,-500.0,0.00013253,2]
[353647849,1739981446220,-500.0,0.00013253,2]
[353647851,1739981446230,-500.0,0.00013253,2]
[353647853,1739981446239,-717.42,0.00013253,2]
[353647855,1739981446248,-500.0,0.00013253,2]
[353647857,1739981446258,-500.0,0.00013253,2]
[353647859,1739981446268,-500.0,0.00013253,2]
[353647861,1739981446278,-500.0,0.00013253,2]
[353647863,1739981446288,-500.0,0.00013253,2]
[353647865,1739981446297,-500.0,0.00013253,2]
[353647867,1739981446306,-592.97,0.00013253,2]
[353647869,1739981446315,-237.5316385,0.00013253,2]
[353647871,1739981446325,-500.0,0.00013253,2]
[353647873,1739981446334,-511.4857157,0.00013253,2]
[353647875,1739981446344,-500.0,0.00013253,2]
[353647877,1739981446354,-762.46,0.00013253,2]
[353647879,1739981446363,-500.0,0.00013253,2]
[353647881,1739981446372,-500.0,0.00013253,2]
[353647883,1739981446381,-500.0,0.00013253,2]
[353647885,1739981446391,-252.6689443,0.00013253,2]
[353647887,1739981446400,-500.0,0.00013253,2]
[353647889,1739981446410,-500.0,0.00013253,2]
[353647891,1739981446419,-703.18,0.00013253,2]
[353647893,1739981446428,-500.0,0.00013253,2]
[353647895,1739981446437,-620.21887018,0.00013253,2]
[353647897,1739981446447,-500.0,0.00013253,2]
[353647899,1739981446457,-537.6,0.00013253,2]
[353647901,1739981446467,-500.0,0.00013253,2]
[353647903,1739981446476,-500.0,0.00013253,2]
[353647905,1739981446486,-183.58894276,0.00013253,2]
[353647907,1739981446495,-504.0569734,0.00013253,2]
[353647909,1739981446504,-628.91,0.00013253,2]
[353647910,1739981446514,-500.0,0.00013253,2]
[353647913,1739981446524,-504.90594684,0.00013253,2]
[353647915,1739981446533,-500.0,0.00013253,2]
[353647917,1739981446543,-1825.39,0.00013253,2]
[353647918,1739981446553,-500.0,0.00013253,2]
[353647921,1739981446562,-500.0,0.00013253,2]
[353647922,1739981446571,-500.0,0.00013253,2]
[353647924,1739981446581,-500.0,0.00013253,2]
[353647926,1739981446590,-500.0,0.00013253,2]
[353647928,1739981446599,-500.0,0.00013253,2]
[353647930,1739981446609,-548.04,0.00013253,2]
[353647932,1739981446619,-500.0,0.00013253,2]
[353647934,1739981446628,-514.83373403,0.00013253,2]
[353647936,1739981446637,-500.0,0.00013253,2]
[353647938,1739981446646,-500.0,0.00013253,2]
[353647940,1739981446655,-500.0,0.00013253,2]
[353647942,1739981446664,-500.0,0.00013253,2]
[353647944,1739981446674,-510.64771384,0.00013253,2]
[353647946,1739981446683,-500.0,0.00013253,2]
[353647948,1739981446695,-500.0,0.00013253,2]
[353647950,1739981446705,-500.0,0.00013253,2]
[353647952,1739981446714,-500.0,0.00013253,2]
[353647954,1739981446723,-500.0,0.00013253,2]
[353647956,1739981446733,-500.0,0.00013253,2]
[353647958,1739981446742,-500.0,0.00013253,2]
[353647960,1739981446752,-500.0,0.00013253,2]
[353647962,1739981446761,-500.0,0.00013253,2]
[353647964,1739981446770,-500.0,0.00013253,2]
[353647966,1739981446779,-500.0,0.00013253,2]
[353647968,1739981446788,-541.66,0.00013253,2]
[353647970,1739981446798,-500.0,0.00013253,2]
[353647972,1739981446807,-523.69457922,0.00013253,2]
[353647974,1739981446816,-800.02,0.00013253,2]
[353647976,1739981446826,-500.0,0.00013253,2]
[353647978,1739981446835,-297.53824576,0.00013253,2]
[353647980,1739981446844,-624.86623327,0.00013253,2]
[353647982,1739981446854,-501.40290394,0.00013253,2]
[353647983,1739981446863,-500.0,0.00013253,2]
[353647984,1739981446872,-511.45123952,0.00013253,2]
[353647985,1739981446881,-575.63,0.00013253,2]
[353647986,1739981446891,-500.0,0.00013253,2]
[353647987,1739981446900,-500.0,0.00013253,2]
[353647988,1739981446909,-500.0,0.00013253,2]
[353647989,1739981446918,-500.0,0.00013253,2]
[353647990,1739981446927,-584.41,0.00013253,2]
[353647991,1739981446937,-500.0,0.00013253,2]
[353647992,1739981446947,-500.0,0.00013253,2]
[353647993,1739981446957,-500.0,0.00013253,2]
[353647995,1739981446966,-500.0,0.00013253,2]
[353647997,1739981446976,-500.0,0.00013253,2]
[353647999,1739981446984,-500.0,0.00013253,2]
[353648001,1739981446994,-500.0,0.00013253,2]
[353648003,1739981447003,-500.0,0.00013253,2]
[353648005,1739981447012,-500.0,0.00013253,2]
[353648007,1739981447022,-500.0,0.00013253,2]
[353648009,1739981447031,-500.0,0.00013253,2]
[353648011,1739981447041,-644.62,0.00013253,2]
[353648013,1739981447050,-378.63153112,0.00013253,2]
[353648015,1739981447059,-500.0,0.00013253,2]
[353648017,1739981447068,-810.37,0.00013253,2]
[353648019,1739981447077,-151.0,0.00013253,2]
[353648021,1739981447086,-1012.27,0.00013253,2]
[353648022,1739981447095,-151.0,0.00013253,2]
[353648024,1739981447104,-500.0,0.00013253,2]
[353648027,1739981447113,-258.13741088,0.00013253,2]
[353648028,1739981447123,-500.0,0.00013253,2]
[353648030,1739981447131,-835.67,0.00013253,2]
[353648033,1739981447141,-592.15,0.00013253,2]
[353648034,1739981447150,-500.0,0.00013253,2]
[353648036,1739981447160,-500.0,0.00013253,2]
[353648039,1739981447169,-500.0,0.00013253,2]
[353648040,1739981447178,-752.16,0.00013253,2]
[353648042,1739981447188,-500.0,0.00013253,2]
[353648044,1739981447197,-500.0,0.00013253,2]
[353648046,1739981447206,-500.0,0.00013253,2]
[353648049,1739981447216,-500.0,0.00013253,2]
[353648051,1739981447228,-500.0,0.00013253,2]
[353648053,1739981447237,-500.0,0.00013253,2]
[353648055,1739981447247,-1154.01,0.00013253,2]
[353648057,1739981447256,-500.0,0.00013253,2]
[353648059,1739981447267,-500.0,0.00013253,2]
[353648061,1739981447276,-500.0,0.00013253,2]
[353648063,1739981447285,-500.0,0.00013253,2]
[353648065,1739981447295,-500.0,0.00013253,2]
[353648066,1739981447304,-500.0,0.00013253,2]
[353648068,1739981447314,-500.0,0.00013253,2]
[353648070,1739981447323,-500.0,0.00013253,7]
[353648072,1739981447332,-313.669237,0.00013253,2]
[353648074,1739981447341,-500.0,0.00013253,2]
[353648076,1739981447350,-500.0,0.00013253,2]
[353648078,1739981447359,-313.669237,0.00013253,2]
[353648080,1739981447370,-522.3,0.00013253,2]
[353648082,1739981447379,-500.0,0.00013253,2]
[353648084,1739981447388,-618.01471761,0.00013253,2]
[353648086,1739981447397,-500.0,0.00013253,2]
[353648088,1739981447406,-500.0,0.00013253,2]
[353648090,1739981447415,-688.01,0.00013253,2]
[353648092,1739981447424,-500.0,0.00013253,2]
[353648094,1739981447432,-500.0,0.00013253,2]
[353648096,1739981447441,-500.0,0.00013253,2]
[353648098,1739981447450,-500.0,0.00013253,2]
[353648100,1739981447460,-500.0,0.00013253,2]
[353648102,1739981447469,-500.0,0.00013253,2]
[353648104,1739981447479,-500.0,0.00013253,2]
[353648106,1739981447488,-500.0,0.00013253,2]
[353648108,1739981447497,-592.54,0.00013253,2]
[353648110,1739981447507,-500.0,0.00013253,2]
[353648112,1739981447516,-500.0,0.00013253,2]
[353648114,1739981447524,-151.0,0.00013253,2]
[353648116,1739981447534,-500.0,0.00013253,2]
[353648118,1739981447543,-151.0,0.00013253,2]
[353648120,1739981447552,-500.0,0.00013253,2]
[353648122,1739981447561,-500.0,0.00013253,2]
[353648124,1739981447571,-500.0,0.00013253,2]
[353648126,1739981447580,-500.0,0.00013253,2]
[353648128,1739981447590,-502.23,0.00013253,2]
[353648130,1739981447599,-500.0,0.00013253,2]
[353648132,1739981447609,-546.84,0.00013253,2]
[353648134,1739981447618,-500.0,0.00013253,2]
[353648136,1739981447627,-500.0,0.00013253,2]
[353648138,1739981447637,-500.0,0.00013253,2]
[353648139,1739981447646,-1154.75,0.00013253,2]
[353648141,1739981447657,-151.0,0.00013253,2]
[353648143,1739981447667,-500.0,0.00013253,2]
[353648145,1739981447676,-518.34663018,0.00013253,2]
[353648147,1739981447686,-500.0,0.00013253,2]
[353648149,1739981447696,-500.0,0.00013253,2]
[353648151,1739981447705,-500.0,0.00013253,2]
[353648153,1739981447715,-151.0,0.00013253,2]
[353648155,1739981447724,-500.0,0.00013253,2]
[353648157,1739981447733,-151.0,0.00013253,2]
[353648159,1739981447743,-304.44721054,0.00013253,2]
[353648161,1739981447752,-500.0,0.00013253,2]
[353648162,1739981447762,-500.0,0.00013253,2]
[353648164,1739981447771,-500.0,0.00013253,2]
[353648165,1739981447782,-691.64,0.00013253,2]
[353648166,1739981447792,-500.0,0.00013253,2]
[353648167,1739981447802,-500.0,0.00013253,2]
[353648168,1739981447813,-500.0,0.00013253,2]
[353648169,1739981447823,-500.0,0.00013253,2]
[353648170,1739981447833,-500.0,0.00013253,2]
[353648171,1739981447842,-500.0,0.00013253,2]
[353648173,1739981447851,-612.66601784,0.00013253,2]
[353648174,1739981447861,-500.0,0.00013253,2]
[353648175,1739981447871,-500.0,0.00013253,2]
[353648176,1739981447881,-500.0,0.00013253,2]
[353648177,1739981447890,-168.186444,0.00013253,2]
[353648178,1739981447899,-683.78,0.00013253,2]
[353648179,1739981447908,-1819.96,0.00013253,2]
[353648180,1739981447918,-168.186444,0.00013253,2]
[353648181,1739981447927,-500.0,0.00013253,2]
[353648182,1739981447936,-500.0,0.00013253,2]
[353648183,1739981447946,-500.0,0.00013253,2]
[353648184,1739981447956,-500.0,0.00013253,2]
[353648185,1739981447965,-500.0,0.00013253,2]
[353648186,1739981447974,-500.0,0.00013253,2]
[353648187,1739981447984,-500.0,0.00013253,2]
[353648188,1739981447993,-674.72,0.00013253,2]
[353648189,1739981448002,-500.0,0.00013253,2]
[353648190,1739981448012,-508.75,0.00013253,2]
[353648191,1739981448022,-500.0,0.00013253,2]
[353648192,1739981448031,-500.0,0.00013253,2]
[353648193,1739981448040,-500.0,0.00013253,2]
[353648194,1739981448050,-500.0,0.00013253,2]
[353648195,1739981448059,-500.0,0.00013253,2]
[353648196,1739981448069,-676.58,0.00013253,2]
[353648197,1739981448078,-511.1663468,0.00013253,2]
[353648198,1739981448088,-500.0,0.00013253,2]
[353648199,1739981448098,-1021.62,0.00013253,2]
[353648200,1739981448107,-500.0,0.00013253,2]
[353648201,1739981448121,-500.0,0.00013253,2]
[353648202,1739981448130,-500.0,0.00013253,2]
[353648203,1739981448140,-500.0,0.00013253,2]
[353648204,1739981448149,-500.0,0.00013253,2]
[353648205,1739981448158,-151.48961,0.00013253,2]
[353648206,1739981448168,-500.0,0.00013253,2]
[353648207,1739981448178,-500.0,0.00013253,2]
[353648208,1739981448188,-500.0,0.00013253,2]
[353648209,1739981448198,-500.0,0.00013253,2]
[353648210,1739981448208,-151.0,0.00013253,2]
[353648211,1739981448221,-500.0,0.00013253,2]
[353648212,1739981448231,-500.0,0.00013253,2]
[353648213,1739981448241,-642.28,0.00013253,2]
[353648214,1739981448250,-592.0,0.00013253,2]
[353648215,1739981448260,-500.0,0.00013253,2]
[353648216,1739981448269,-500.0,0.00013253,2]
[353648217,1739981448278,-500.0,0.00013253,2]
[353648218,1739981448286,-500.0,0.00013253,2]
[353648219,1739981448295,-500.0,0.00013253,2]
[353648220,1739981448304,-500.0,0.00013253,2]
[353648221,1739981448313,-1036.35,0.00013253,2]
[353648222,1739981448323,-500.0,0.00013253,2]
[353648223,1739981448332,-500.0,0.00013253,2]
[353648224,1739981448342,-916.85,0.00013253,2]
[353648225,1739981448352,-500.0,0.00013253,2]
[353648226,1739981448361,-151.0,0.00013253,2]
[353648227,1739981448371,-500.0,0.00013253,2]
[353648228,1739981448379,-500.0,0.00013253,2]
[353648229,1739981448389,-500.0,0.00013253,2]
[353648230,1739981448398,-151.0,0.00013253,2]
[353648231,1739981448408,-500.0,0.00013253,2]
[353648232,1739981448417,-500.0,0.00013253,2]
[353648233,1739981448427,-151.0,0.00013253,2]
[353648234,1739981448436,-500.0,0.00013253,2]
[353648235,1739981448446,-151.0,0.00013253,2]
[353648236,1739981448456,-500.0,0.00013253,2]
[353648237,1739981448466,-297.6389,0.00013253,2]
[353648238,1739981448475,-261.6,0.00013253,2]
[353648239,1739981448485,-500.0,0.00013253,2]
[353648240,1739981448495,-500.0,0.00013253,2]
[353648241,1739981448504,-151.0,0.00013253,2]
[353648242,1739981448514,-500.0,0.00013253,2]
[353648243,1739981448524,-529.85,0.00013253,2]
[353648244,1739981448535,-169.807755,0.00013253,2]
[353648245,1739981448546,-151.0,0.00013253,2]
[353648246,1739981448556,-500.0,0.00013253,2]
[353648247,1739981448566,-151.0,0.00013253,2]
[353648248,1739981448576,-169.807755,0.00013253,2]
[353648249,1739981448586,-169.807755,0.00013253,2]
[353648250,1739981448596,-169.807755,0.00013253,2]
[353648251,1739981448606,-500.0,0.00013253,2]
[353648252,1739981448616,-500.0,0.00013253,2]
[353648253,1739981448626,-500.0,0.00013253,2]
[353648254,1739981448637,-500.0,0.00013253,2]
[353648255,1739981448647,-500.0,0.00013253,2]
[353648256,1739981448656,-500.0,0.00013253,2]
[353648257,1739981448667,-500.0,0.00013253,2]
[353648258,1739981448678,-500.0,0.00013253,2]
[353648259,1739981448689,-198.208733,0.00013253,2]
[353648260,1739981448700,-198.208733,0.00013253,2]
[353648261,1739981448710,-500.0,0.00013253,2]
[353648262,1739981448721,-500.0,0.00013253,2]
[353648263,1739981448732,-500.0,0.00013253,2]
[353648264,1739981448743,-500.0,0.00013253,2]
[353648265,1739981448753,-182.46260651,0.00013253,2]
[353648266,1739981448763,-500.0,0.00013253,2]
[353648267,1739981448774,-2000.0,0.00013253,2]
[353648268,1739981448784,-200.0,0.00013253,2]
[353648269,1739981448794,-150.0,0.00013254,2]
[353648270,1739981448804,-4884.0526414,0.00013256,2]
[353648271,1739981448814,-3217.6179611,0.00013256,2]
[353648272,1739981448824,-716.8625417,0.00013256,2]
[353648273,1739981448834,-549.349408,0.00013256,2]
[353648274,1739981448843,-2550.4587196,0.00013256,2]
[353648275,1739981448853,-3459.192126,0.00013256,2]
[353648276,1739981448865,-695.7582526,0.00013256,2]
[353648277,1739981448875,-6973.0346587,0.00013256,2]
[353648278,1739981448886,-3311.256717,0.00013256,2]
[353648279,1739981448896,-216.497913,0.0001326,2]
[353648280,1739981448906,-216.497913,0.0001326,2]
[353648281,1739981448916,-172.272058,0.0001326,2]
[353648282,1739981448928,-172.272058,0.0001326,2]
[353648283,1739981448937,-151.0,0.0001326,2]
[353648284,1739981448947,-781.560198,0.0001326,2]
[353648285,1739981448957,-781.560198,0.0001326,2]
[353648286,1739981448967,-151.0,0.0001326,2]
[353648287,1739981448978,-151.0,0.0001326,2]
[353648288,1739981448989,-151.0,0.0001326,2]
[353648289,1739981448999,-1376.58,0.0001326,2]
[353648290,1739981449009,-168.186444,0.0001326,2]
[353648291,1739981449018,-2593.33,0.0001326,2]
[353648292,1739981449226,-168.186444,0.0001326,2]
[353648293,1739981449268,-2387.5,0.0001326,2]
[353648294,1739981449279,-3362.26,0.0001326,2]
[353648295,1739981449290,-1927.35,0.0001326,2]
[353648296,1739981449301,-3084.37,0.0001326,2]
[353648297,1739981449313,-3904.33,0.0001326,2]
[353648298,1739981449324,-8398.78,0.0001326,2]
[353648299,1739981449334,-1737.59,0.0001326,2]
[353648300,1739981449345,-151.0,0.0001326,2]
[353648301,1739981449354,-1979.14,0.0001326,2]
[353648302,1739981449364,-755.1,0.0001326,2]
[353648303,1739981449375,-3253.91,0.0001326,2]
[353648304,1739981449385,-916.63,0.0001326,2]
[353648305,1739981449395,-1946.66,0.0001326,2]
[353648306,1739981449405,-151.0,0.0001326,2]
[353648307,1739981449415,-2637.31,0.0001326,2]
[353648308,1739981449425,-215.042102,0.0001326,2]
[353648309,1739981449435,-151.0,0.0001326,2]
[353648310,1739981449444,-3369.24,0.0001326,2]
[353648311,1739981449454,-151.0,0.0001326,2]
[353648312,1739981449464,-2313.16,0.0001326,2]
[353648313,1739981449474,-151.0,0.0001326,2]
[353648314,1739981449484,-2995.01,0.0001326,2]
[353648315,1739981449495,-712.7,0.0001326,2]
[353648316,1739981449506,-1878.14,0.0001326,2]
[353648317,1739981449516,-198.208733,0.0001326,2]
[353648318,1739981449526,-198.208733,0.0001326,2]
[353648319,1739981449536,-3482.35,0.0001326,2]
[353648320,1739981449546,-209.850624,0.00013261,2]
[353648321,1739981449556,-209.850624,0.00013261,2]
[353648322,1739981449566,-674.84,0.00013261,2]
[353648323,1739981449577,-13131.06890716,0.00013262,3]
[353648324,1739981449588,-500.0,0.00013262,2]
[353648325,1739981449598,-610.99440902,0.00013262,2]
[353648326,1739981449608,-510.63680717,0.00013262,2]
[353648327,1739981449618,-500.0,0.00013262,2]
[353648328,1739981449628,-327.2083,0.00013262,2]
[353648329,1739981449638,-277.69011833,0.00013262,2]
[353648330,1739981449649,-500.0,0.00013262,2]
[353648331,1739981449659,-500.0,0.00013262,2]
[353648332,1739981449669,-500.0,0.00013262,2]
[353648333,1739981449679,-152.188578,0.00013262,2]
[353648334,1739981449690,-151.0,0.00013262,2]
[353648335,1739981449700,-181.42906056,0.00013262,2]
[353648336,1739981449710,-500.0,0.00013262,2]
[353648337,1739981449721,-500.0,0.00013262,2]
[353648338,1739981449730,-503.82322878,0.00013262,2]
[353648339,1739981449740,-500.0,0.00013262,2]
[353648340,1739981449751,-222.30421584,0.00013262,2]
[353648341,1739981449760,-300.0,0.00013262,2]
[353648342,1739981449770,-500.0,0.00013262,2]
[353648343,1739981449780,-500.0,0.00013262,2]
[353648344,1739981449790,-500.0,0.00013262,2]
[353648345,1739981449800,-500.0,0.00013262,2]
[353648346,1739981449810,-151.0,0.00013262,2]
[353648347,1739981449819,-151.0,0.00013262,2]
[353648348,1739981449829,-500.0,0.00013262,2]